bitfinex/quotes_ETHUSD_20250114
["timestamp","ask_amount","ask_price","bid_price","bid_amount"]
[1736881208739,0.7557,3228.2,3227.4,3.09841]
[1736881208938,0.7557,3228.1,3227.2,3.09863]
[1736881209143,3.09783,3228.1,3227.2,3.09863]
[1736881209344,0.7557,3228.0,3227.2,3.09863]
[1736881209806,0.7557,3228.0,3227.0,3.09883]
[1736881209807,0.7557,3227.9,3227.0,3.09883]
[1736881210083,0.7557,3227.8,3226.7,3.84052453]
[1736881210242,3.09837,3227.5,3226.6,3.84052453]
[1736881210442,0.7557,3227.3,3226.5,3.09925]
[1736881210641,0.7557,3227.3,3226.3,3.84052453]
[1736881210875,0.184,3227.4,3226.1,6.94021453]
[1736881210876,3.85455,3227.0,3226.1,6.94021453]
[1736881211084,0.7557,3226.9,3226.1,3.84052453]
[1736881211279,0.7557,3226.9,3226.0,3.2655736]
[1736881211451,3.85466,3226.9,3226.0,0.87637341]
[1736881212056,3.85466,3226.9,3226.0,0.1657636]
[1736881212278,0.7557,3226.7,3226.0,0.1657636]
[1736881212871,2.9197226,3227.0,3226.0,0.1657636]
[1736881212872,0.7557,3226.5,3226.0,0.1657636]
[1736881213070,3.0,3227.2,3226.0,0.1657636]
[1736881213071,0.7557,3226.3,3226.0,0.1657636]
[1736881213273,2.9197226,3226.7,3226.0,0.1657636]
[1736881213274,0.7557,3226.1,3226.0,0.1657636]
[1736881213481,4.26321801,3226.1,3226.0,0.1657636]
[1736881213713,1.16350801,3226.1,3226.0,0.1657636]
[1736881214010,0.7557,3226.1,3226.0,0.1657636]
[1736881215281,3.85541,3226.1,3226.0,0.1657636]
[1736881215713,6.89416586,3226.1,3226.0,0.1657636]
[1736881215912,6.85541,3226.1,3226.0,0.1657636]
[1736881216102,0.9407,3226.1,3226.0,0.1657636]
[1736881216279,0.7557,3226.1,3226.0,0.1657636]
[1736881216479,0.9407,3226.1,3226.0,0.1657636]
[1736881217099,1.34860599,3226.1,3226.0,0.1657636]
[1736881217316,4.44831599,3226.1,3226.0,0.1657636]
[1736881218114,7.44831599,3226.1,3226.0,0.1657636]
[1736881218816,10.36803859,3226.1,3226.0,0.1657636]
[1736881222236,7.44831599,3226.1,3226.0,0.1657636]
[1736881222448,7.04041,3226.1,3226.0,0.1657636]
[1736881224362,10.5101326,3226.1,3226.0,0.1657636]
[1736881224670,10.54432654,3226.1,3226.0,3.6e-06]
[1736881228364,0.8057,3225.8,3224.0,0.7683]
[1736881228641,3.90688,3224.6,3223.6,0.3223554]
[1736881228797,0.185,3224.5,3223.7,0.7683]
[1736881229158,3.28626,3224.5,3223.7,0.7683]
[1736881229348,0.03877023,3224.4,3223.7,0.7683]
[1736881229548,3.10136,3224.4,3223.7,0.7683]
[1736881229794,3.510566,3224.4,3223.7,0.7683]
[1736881230149,3.10149,3224.3,3223.7,0.7683]
[1736881230504,3.10149,3224.3,3223.4,0.7683]
[1736881230505,3.10166,3224.1,3223.4,0.7683]
[1736881230705,3.10166,3224.1,3223.5,0.55]
[1736881231283,0.409206,3224.4,3223.1,0.005]
[1736881231284,2.9197226,3223.9,3223.1,0.005]
[1736881231461,3.10227,3223.5,3223.1,0.005]
[1736881231801,0.185,3223.4,3223.2,0.7683]
[1736881234156,0.185,3223.4,3223.3,0.55]
[1736881234406,0.8057,3224.0,3223.3,0.55]
[1736881234549,0.185,3223.5,3223.3,0.55]
[1736881234754,0.185,3223.5,3223.3,0.992589]
[1736881235352,3.10122,3224.6,3223.3,3.9123116]
[1736881235605,0.185,3224.5,3223.8,1.3183]
[1736881236475,0.8057,3225.0,3224.3,2.9197226]
[1736881236692,0.8057,3225.6,3224.6,4.2380226]
[1736881236899,0.03428512,3225.7,3225.1,3.1006]
[1736881236900,0.21928512,3225.7,3225.1,3.1006]
[1736881237098,0.185,3225.7,3225.2,3.49973482]
[1736881237261,0.185,3225.7,3225.0,3.65076]
[1736881237609,3.28513,3225.7,3224.7,3.10106]
[1736881237761,0.185,3225.7,3224.9,2.9197226]
[1736881237962,0.8057,3226.0,3225.3,3.10046]
[1736881238197,0.185,3225.9,3225.0,0.55]
[1736881238525,0.185,3225.8,3225.2,0.55]
[1736881238731,0.8057,3226.0,3225.2,3.4697226]
[1736881239009,0.185,3226.0,3225.7,0.55]
[1736881239205,0.185,3226.0,3225.6,0.55]
[1736881239375,2.236,3226.4,3225.3,1.11527226]
[1736881239376,2.236,3226.4,3225.8,0.55]
[1736881239719,3.54802571,3227.4,3225.8,0.55]
[1736881239720,0.8057,3226.9,3225.8,0.55]
[1736881239914,0.8057,3226.9,3225.7,3.54802571]
[1736881239915,0.185,3226.4,3226.1,0.55]
[1736881240560,0.8057,3226.9,3225.6,0.7683]
[1736881240561,3.09915,3226.7,3225.6,0.7683]
[1736881240765,0.185,3226.6,3225.6,0.7683]
[1736881241068,0.8057,3226.9,3225.7,0.55]
[1736881241069,0.185,3226.5,3225.7,0.55]
[1736881241263,0.185,3226.4,3225.7,0.55]
[1736881241597,0.185,3226.4,3225.7,3.65001]
[1736881241776,0.185,3226.4,3225.7,4.091841]
[1736881242815,3.09917,3226.7,3225.7,4.091841]
[1736881243314,0.185,3226.6,3225.7,4.091841]
[1736881244317,3.0995,3226.4,3225.3,3.10044]
[1736881244521,3.0995,3226.4,3225.4,0.55]
[1736881245211,0.8057,3226.5,3225.6,0.55]
[1736881245676,3.90504,3226.5,3225.6,0.55]
[1736881245873,0.8057,3226.5,3225.6,3.10018]
[1736881246198,0.39907,3226.4,3225.5,0.55]
[1736881246725,0.39907,3226.4,3225.5,3.10027]
[1736881246926,0.39907,3226.4,3225.6,0.55]
[1736881247082,0.185,3226.3,3225.6,0.55]
[1736881247282,0.185,3226.3,3225.4,0.55]
[1736881247486,0.633919,3226.3,3225.4,0.55]
[1736881247722,0.633919,3226.3,3225.5,0.55]
[1736881247949,0.448919,3226.3,3225.5,0.55]
[1736881248147,0.185,3226.2,3225.5,0.55]
[1736881248355,0.185,3226.2,3225.4,0.55]
[1736881248552,0.5583469,3226.2,3225.4,0.55]
[1736881249168,0.8322,3226.1,3225.1,0.7683]
[1736881249370,3.93193,3226.1,3225.1,0.7683]
[1736881249531,3.93193,3226.1,3225.2,0.55]
[1736881249746,3.09991,3225.9,3224.8,0.8164]
[1736881250067,0.309991,3225.8,3224.8,0.8164]
[1736881250278,0.8322,3226.1,3224.8,0.8164]
[1736881250447,3.09993,3225.9,3224.9,3.65078]
[1736881250811,3.09986,3226.0,3225.1,0.55]
[1736881251066,3.09992,3225.9,3225.1,0.55]
[1736881251472,3.93194,3226.1,3225.1,3.10067]
[1736881251686,0.411694,3226.0,3225.2,0.55]
[1736881251840,0.411694,3226.0,3224.9,3.65086]
[1736881252023,3.09992,3225.9,3224.9,3.65086]
[1736881252388,3.93195,3226.1,3224.9,0.55]
[1736881253872,3.93195,3226.1,3225.2,0.55]
[1736881253873,3.09991,3225.9,3225.2,0.55]
[1736881254171,3.09991,3225.9,3225.0,0.55]
[1736881254672,3.09991,3225.9,3225.1,0.55]
[1736881254837,0.309991,3225.8,3225.1,0.55]
[1736881256326,0.03875464,3225.7,3224.8,4.65692453]
[1736881256525,3.410021,3225.8,3224.8,7.75780453]
[1736881256871,3.410021,3225.8,3224.9,0.55]
[1736881257423,0.309991,3225.8,3225.1,0.55]
[1736881257620,3.09984,3226.0,3225.1,0.55]
[1736881258041,0.8322,3226.1,3224.9,0.55]
[1736881258243,0.8322,3226.1,3224.8,4.65692453]
[1736881258244,3.93192,3226.1,3225.2,0.55]
[1736881258724,3.28481,3226.0,3225.2,0.55]
[1736881259543,3.11451265,3226.0,3225.0,0.55]
[1736881259721,3.10003,3225.8,3225.0,0.55]
[1736881260162,0.8322,3225.7,3225.0,0.55]
[1736881260574,0.39467127,3225.9,3225.1,0.58001921]
[1736881260776,3.09927,3226.6,3225.7,3.10007]
[1736881260987,0.185,3226.5,3225.8,4.4592]
[1736881261644,0.185,3226.5,3226.1,0.55]
[1736881261995,0.185,3226.5,3225.8,0.8092]
[1736881262137,0.185,3226.5,3225.9,3.64981]
[1736881262344,0.185,3226.5,3226.0,0.445901]
[1736881263147,0.185,3226.5,3225.9,3.64981]
[1736881263148,3.28435,3226.5,3225.9,0.55]
[1736881263341,0.78924738,3226.4,3225.6,0.55]
[1736881263547,3.09959,3226.3,3225.6,0.55]
[1736881263968,3.09959,3226.3,3225.1,0.8092]
[1736881263969,3.09992,3225.9,3225.1,0.8092]
[1736881264167,3.10003,3225.8,3224.8,7.75066453]
[1736881264348,3.45276472,3225.7,3224.8,7.75066453]
[1736881264665,0.185,3225.6,3224.8,3.91014]
[1736881264867,0.185,3225.6,3224.5,3.84052453]
[1736881264868,2.92951265,3225.1,3224.5,3.84052453]
[1736881265088,2.92951265,3225.1,3224.2,5.28981195]
[1736881265089,2.92951265,3224.8,3224.2,3.84052453]
[1736881265239,2.92951265,3224.5,3224.2,3.84052453]
[1736881265573,1.05235127,3224.4,3224.3,0.55]
[1736881265775,1.05235127,3224.4,3224.2,3.84052453]
[1736881265989,0.185,3224.7,3223.4,3.7716]
[1736881266193,0.7594,3225.2,3224.4,3.10131]
[1736881266391,0.185,3224.8,3223.9,0.7716]
[1736881266633,0.185,3224.8,3224.3,0.55]
[1736881266814,0.185,3224.8,3223.9,0.7716]
[1736881266988,3.10106,3224.7,3223.9,0.7716]
[1736881267186,3.429776,3224.6,3223.9,0.7716]
[1736881267442,3.429776,3224.6,3223.5,3.87376]
[1736881267443,3.10136,3224.4,3223.5,3.87376]
[1736881267889,0.03877325,3224.3,3223.5,0.7716]
[1736881268092,0.03877325,3224.3,3223.2,0.7716]
[1736881268093,3.59199631,3224.3,3223.2,0.7716]
[1736881268292,3.59199631,3224.3,3223.1,0.005]
[1736881268293,0.7594,3224.2,3223.1,0.005]
[1736881268530,3.10185,3223.9,3223.1,0.005]
[1736881268841,0.22377722,3223.8,3223.1,0.005]
[1736881269004,0.7594,3223.7,3223.1,0.005]
[1736881269195,0.79818093,3223.7,3223.1,0.005]
[1736881269394,3.86151,3223.7,3223.1,0.005]
[1736881269707,0.185,3223.8,3223.1,3.10758]
[1736881269888,0.7594,3224.0,3223.2,0.55]
[1736881270085,0.185,3223.9,3223.2,0.55]
[1736881270333,0.185,3223.9,3223.1,0.005]
[1736881270522,0.185,3223.9,3223.1,0.555]
[1736881270833,3.73495896,3223.9,3223.1,0.005]
[1736881272112,3.10201,3223.8,3223.1,0.005]
[1736881272605,0.63312896,3223.9,3223.1,0.005]
[1736881273008,0.7594,3224.5,3223.4,3.10231]
[1736881273241,0.185,3224.1,3223.3,0.55]
[1736881273727,0.185,3224.1,3223.4,3.10229]
[1736881273930,0.185,3224.1,3223.5,3.10218]
[1736881274136,0.185,3224.1,3223.6,0.55]
[1736881274515,0.185,3224.1,3223.2,0.7716]
[1736881275040,0.185,3224.1,3223.8,0.55]
[1736881275340,0.185,3224.1,3223.7,0.55]
[1736881275546,3.86065,3224.5,3223.7,0.55]
[1736881275748,0.185,3224.0,3223.7,0.55]
[1736881276045,0.185,3224.0,3223.5,0.55]
[1736881276844,0.185,3224.0,3223.3,0.55]
[1736881277049,0.185,3224.0,3223.2,0.7716]
[1736881277209,0.185,3224.0,3223.3,0.55]
[1736881277411,0.328664,3223.9,3223.2,0.7716]
[1736881277820,0.7711,3223.8,3223.2,0.7716]
[1736881278027,0.7711,3223.8,3223.1,0.005]
[1736881278222,0.7711,3223.8,3223.1,3.65758]
[1736881278448,0.7711,3223.8,3223.1,0.005]
[1736881278850,0.7711,3223.8,3223.1,3.10759]
[1736881279253,0.7711,3223.8,3223.2,0.55]
[1736881279421,1.176884,3223.8,3223.2,0.55]
[1736881279616,1.176884,3223.8,3223.1,0.555]
[1736881280029,0.7711,3223.8,3223.2,0.55]
[1736881280230,0.185,3224.0,3223.4,0.55]
[1736881280720,0.185,3224.0,3223.3,0.55]
[1736881281952,0.7711,3224.1,3223.2,0.55]
[1736881282118,0.185,3224.0,3223.2,0.55]
[1736881282317,0.185,3224.0,3223.4,0.55]
[1736881282754,0.185,3224.0,3223.2,0.55]
[1736881282940,0.590773,3224.0,3223.2,0.55]
[1736881283342,0.590773,3224.0,3223.3,0.55]
[1736881283659,0.590773,3224.0,3223.1,0.005]
[1736881283660,0.185,3224.0,3223.2,3.10247]
[1736881283835,0.185,3224.0,3223.1,0.005]
[1736881284034,3.87274,3224.1,3223.1,0.555]
[1736881284247,0.185,3224.0,3223.1,0.555]
[1736881284450,0.185,3223.9,3223.1,0.005]
[1736881284761,0.185,3223.9,3223.6,0.55]
[1736881284921,0.185,3224.0,3223.6,0.915218]
[1736881285123,0.185,3224.1,3223.7,0.55]
[1736881286069,0.7711,3224.4,3223.4,3.10229]
[1736881286370,0.185,3224.0,3223.5,0.55]
[1736881286673,0.185,3224.0,3223.8,0.55]
[1736881286873,0.7711,3224.4,3224.0,0.55]
[1736881287375,0.185,3224.3,3223.9,0.55]
[1736881287571,0.185,3224.3,3223.8,0.55]
[1736881288076,0.185,3224.3,3223.2,0.7741]
[1736881288271,0.5946259,3224.3,3223.6,0.55]
[1736881289086,0.03877323,3224.2,3223.3,3.10236]
[1736881289280,0.7711,3224.2,3223.2,3.87652]
[1736881289441,3.87269,3224.2,3223.3,3.6524]
[1736881289786,0.7711,3224.2,3223.5,0.55]
[1736881289941,0.7711,3224.2,3223.5,3.65215]
[1736881290277,0.188,3224.3,3224.0,0.55]
[1736881290872,0.188,3224.3,3223.7,0.55]
[1736881291072,3.10097,3224.8,3223.7,3.65197]
[1736881291290,0.188,3224.4,3223.7,0.55]
[1736881291495,0.188,3224.4,3223.7,3.65202]
[1736881291641,0.188,3224.4,3223.9,0.55]
[1736881292074,3.8719,3225.0,3224.0,3.10166]
[1736881292279,0.188,3224.9,3224.1,0.55]
[1736881292441,3.8719,3225.0,3224.0,3.10166]
[1736881292442,0.7711,3225.0,3224.2,0.55]
[1736881292642,0.9591,3225.3,3224.3,0.55]
[1736881292842,0.9591,3225.3,3224.5,3.65119]
[1736881293085,0.9591,3225.3,3224.6,0.55]
[1736881293456,0.9591,3225.3,3224.8,0.55]
[1736881294191,0.9591,3225.3,3224.6,0.55]
[1736881294909,3.10039,3225.4,3224.6,0.55]
[1736881295058,0.188,3225.2,3224.6,0.55]
[1736881295264,0.188,3225.2,3224.7,0.55]
[1736881296375,0.188,3225.2,3224.2,4.32732306]
[1736881296627,0.188,3225.2,3224.8,0.55]
[1736881296799,0.188,3225.2,3224.7,0.55]
[1736881296943,0.188,3225.3,3224.7,3.65102]
[1736881297149,0.188,3225.3,3224.6,0.55]
[1736881297350,3.1003,3225.5,3224.6,3.65107]
[1736881297550,3.1003,3225.5,3224.5,3.55322306]
[1736881297551,0.7711,3225.2,3224.5,0.55]
[1736881297803,3.10061,3225.2,3223.9,0.7741]
[1736881298018,3.10113,3224.7,3223.8,3.10185]
[1736881298314,4.05983,3225.1,3223.7,3.55322306]
[1736881298514,0.188,3225.0,3224.5,0.55]
[1736881298714,0.188,3225.0,3224.5,3.65123]
[1736881299060,0.188,3225.0,3224.6,3.58325556]
[1736881299316,0.188,3225.3,3224.9,0.55]
[1736881300788,0.7711,3225.7,3224.9,0.55]
[1736881300969,0.7711,3225.7,3224.9,3.68083921]
[1736881301173,0.188,3225.6,3224.9,4.09631392]
[1736881301521,0.188,3225.6,3224.9,7.02545733]
[1736881301872,0.03875519,3225.5,3224.5,0.7741]
[1736881302219,3.11714341,3225.4,3223.9,0.7741]
[1736881302384,3.10126,3224.5,3223.6,3.87619]
[1736881302567,0.7711,3224.3,3223.6,0.7741]
[1736881302766,0.188,3224.4,3224.0,3.10166]
[1736881303194,0.188,3224.4,3224.1,0.55]
[1736881303386,0.188,3224.4,3223.8,3.10189]
[1736881304582,0.188,3224.4,3223.9,0.55]
[1736881305169,0.188,3224.4,3224.0,0.55]
[1736881306205,0.188,3224.4,3223.7,3.65198]
[1736881306987,0.188,3224.4,3223.7,0.55]
[1736881307189,0.188,3224.4,3223.9,0.55]
[1736881308217,0.188,3224.4,3223.7,0.55]
[1736881308582,0.188,3224.4,3223.9,0.55]
[1736881308984,0.188,3224.4,3223.7,3.652]
[1736881309718,0.188,3224.4,3223.7,0.99261]
[1736881309892,0.188,3224.4,3224.2,0.55]
[1736881310091,0.188,3224.4,3224.0,0.55]
[1736881310512,0.188,3224.4,3224.2,0.55]
[1736881311318,0.7711,3224.6,3223.8,0.55]
[1736881311319,0.9591,3224.6,3223.8,0.55]
[1736881311644,0.7802,3225.2,3224.2,3.55201425]
[1736881311823,0.188,3225.4,3224.9,0.55]
[1736881311979,0.188,3225.4,3224.6,3.1011]
[1736881312178,0.188,3225.4,3224.7,0.55]
[1736881312429,0.188,3225.4,3224.5,0.55]
[1736881312636,0.188,3225.4,3224.9,0.55]
[1736881312986,0.188,3225.4,3224.6,3.6511]
[1736881313330,0.188,3225.9,3225.3,3.1004]
[1736881313529,0.188,3225.9,3225.4,0.55]
[1736881314618,3.28798,3225.9,3225.0,0.55]
[1736881314797,0.188,3225.9,3225.0,0.55]
[1736881315133,0.188,3225.8,3225.3,0.55]
[1736881315311,0.188,3225.9,3225.3,0.55]
[1736881315707,0.188,3225.9,3225.4,0.55]
[1736881316043,0.188,3226.0,3225.4,0.55]
[1736881317242,0.594784,3226.0,3225.0,0.55]
[1736881317542,0.594784,3226.0,3225.2,0.55]
[1736881317543,0.188,3226.0,3225.2,0.55]
[1736881317699,3.28781,3226.0,3225.2,0.55]
[1736881318100,0.188,3226.0,3225.2,0.55]
[1736881318527,3.28781,3226.0,3225.2,0.55]
[1736881318717,0.188,3226.0,3225.2,0.55]
[1736881318899,0.188,3226.0,3225.2,0.91506]
[1736881319101,0.188,3226.0,3225.2,0.55]
[1736881319328,0.188,3226.0,3225.3,0.55]
[1736881319534,0.188,3226.0,3225.4,0.55]
[1736881319750,0.188,3226.0,3225.5,0.55]
[1736881320317,0.188,3226.0,3225.3,0.55]
[1736881320646,0.188,3226.0,3225.0,3.10073]
[1736881320805,0.188,3226.0,3225.1,3.493613]
[1736881321318,0.188,3226.0,3225.2,3.65057]
[1736881321810,3.87992,3226.1,3225.2,3.65057]
[1736881322145,0.19,3226.0,3225.1,0.392983]
[1736881322451,3.10028,3225.6,3224.6,3.0]
[1736881322630,1.119528,3225.5,3224.6,3.0]
[1736881322837,0.8095,3225.5,3224.6,3.0]
[1736881323145,0.8095,3225.5,3224.7,0.55]
[1736881323434,3.9098,3225.5,3224.6,3.0]
[1736881323595,0.8095,3225.5,3224.7,3.65105]
[1736881323800,0.8095,3225.5,3224.9,0.55]
[1736881324023,0.19,3225.9,3225.1,0.55]
[1736881324399,3.0984,3227.5,3225.8,0.55]
[1736881324599,3.0984,3227.5,3225.7,3.55201425]
[1736881324600,0.8095,3226.8,3226.3,3.09951]
[1736881324812,0.8095,3226.8,3226.4,7.20143425]
[1736881325133,0.8095,3227.1,3226.6,0.55]
[1736881325293,0.8095,3227.1,3226.8,0.55]
[1736881325500,0.19,3227.6,3227.2,0.55]
[1736881326235,0.8095,3228.0,3227.4,0.55]
[1736881326434,2.236,3229.0,3227.8,3.64799]
[1736881326435,0.8095,3228.5,3227.8,3.64799]
[1736881326781,0.19,3228.7,3228.4,0.55]
[1736881326983,0.19,3228.7,3228.4,0.57993592]
[1736881327133,0.19,3228.7,3228.3,0.55]
[1736881327334,0.19,3228.7,3228.0,3.09786]
[1736881327651,0.19,3228.7,3228.3,0.55]
[1736881327984,0.19,3228.7,3228.1,0.55]
[1736881328134,0.03871572,3228.8,3227.3,0.7959]
[1736881328332,0.19,3229.1,3228.3,3.09758]
[1736881328637,0.19,3229.1,3228.4,0.55]
[1736881328831,0.518664,3229.1,3228.4,0.55]
[1736881329432,0.518664,3229.1,3227.9,6.64995425]
[1736881329433,0.518664,3229.1,3227.9,3.55201425]
[1736881329638,3.09703,3228.9,3227.7,3.0]
[1736881330049,3.28684,3229.1,3228.0,0.55]
[1736881330356,0.19,3229.1,3228.3,0.55]
[1736881330947,0.19,3229.1,3228.0,0.55]
[1736881331187,0.8095,3228.9,3228.0,0.55]
[1736881331349,0.390646,3228.8,3227.7,3.55]
[1736881331536,0.580646,3228.8,3228.1,0.55]
[1736881332078,0.580646,3228.8,3227.7,3.09808]
[1736881332247,3.28721,3228.8,3227.7,3.09808]
[1736881332586,0.19,3228.7,3227.8,0.55]
[1736881332784,3.09656,3229.4,3228.5,0.55]
[1736881332956,0.19,3229.3,3228.6,0.55]
[1736881333156,0.19,3229.3,3228.6,3.64731]
[1736881333774,0.19,3229.3,3228.8,0.55]
[1736881334330,0.9995,3229.4,3228.8,3.64707]
[1736881334472,0.8095,3229.8,3229.1,0.55]
[1736881334786,0.8095,3229.8,3228.9,0.55]
[1736881334787,0.19,3229.6,3228.9,0.55]
[1736881334940,0.8095,3229.8,3229.2,0.55]
[1736881335261,0.8095,3229.8,3229.3,0.55]
[1736881335613,0.8095,3229.8,3229.4,0.55]
[1736881335771,0.19,3230.0,3229.4,0.55]
[1736881335972,0.8095,3230.1,3229.4,0.55]
[1736881336473,0.9995,3230.1,3229.4,0.55]
[1736881336669,0.8095,3230.1,3229.4,0.55]
[1736881336874,0.9995,3230.1,3229.4,0.55]
[1736881338193,0.8095,3230.1,3229.4,0.951139]
[1736881338408,0.9995,3230.1,3229.4,0.951139]
[1736881342054,0.8095,3230.1,3229.4,0.951139]
[1736881342255,0.9995,3230.1,3229.4,0.951139]
[1736881342791,3.09619,3229.8,3228.7,1.43305009]
[1736881343089,3.09598,3230.0,3228.9,3.09694]
[1736881343294,3.09598,3230.0,3229.0,0.55]
[1736881343455,0.9995,3230.1,3229.2,0.55]
[1736881343654,3.09606,3230.0,3228.9,3.647]
[1736881343896,3.09606,3230.0,3229.1,0.55]
[1736881344272,3.09608,3229.9,3229.1,0.55]
[1736881345710,3.89246,3229.6,3228.7,3.0972]
[1736881345907,3.89246,3229.6,3228.8,3.64711]
[1736881345908,0.7961,3229.6,3228.8,3.64711]
[1736881346091,0.7961,3229.6,3228.8,7.19912425]
[1736881346287,0.7961,3229.6,3229.0,0.55]
[1736881346900,0.7961,3229.6,3228.9,0.55]
[1736881347173,0.7961,3229.0,3228.0,0.7696]
[1736881347610,0.7961,3229.0,3228.1,0.55]
[1736881348685,3.89304,3229.0,3228.1,3.64776]
[1736881349212,0.7961,3229.0,3228.3,0.55]
[1736881349981,0.03871358,3228.9,3227.7,4.32161425]
[1736881350213,0.7961,3228.5,3227.6,3.09827]
[1736881350902,0.7961,3228.5,3227.7,3.64817]
[1736881351105,0.7961,3228.5,3227.9,0.55]
[1736881351307,0.7961,3228.5,3227.9,0.969806]
[1736881352111,0.7961,3228.5,3227.7,0.55]
[1736881352277,0.0387201,3228.4,3227.1,0.7696]
[1736881352477,0.0387201,3228.4,3227.0,3.0988]
[1736881352478,0.7961,3228.2,3227.0,3.0988]
[1736881352682,0.7961,3227.9,3226.7,3.21338796]
[1736881352913,0.7961,3227.4,3226.7,3.21338796]
[1736881353076,1.18555,3227.4,3226.7,3.21338796]
[1736881353298,3.09864,3227.3,3226.3,3.09949]
[1736881353738,3.09886,3227.0,3226.2,3.21338796]
[1736881353945,0.192,3226.9,3226.2,3.21338796]
[1736881354097,0.192,3226.9,3226.1,3.86923]
[1736881354816,0.192,3226.9,3226.2,0.55]
[1736881355017,0.7961,3226.8,3226.2,1.34712443]
[1736881355721,0.7961,3226.8,3226.2,4.44672443]
[1736881358233,0.7961,3226.8,3226.2,1.34712443]
[1736881358529,0.7961,3226.8,3226.2,4.44673443]
[1736881359440,0.7961,3226.8,3226.2,1.34712443]
[1736881359601,0.7961,3226.8,3226.4,0.55]
[1736881360302,0.7961,3226.8,3226.3,0.55]
[1736881361458,0.7961,3226.8,3225.9,3.09986]
[1736881361676,0.0387415,3226.7,3225.7,3.21338796]
[1736881361845,3.09946,3226.4,3225.7,3.21338796]
[1736881362027,0.03874653,3226.3,3225.5,3.21338796]
[1736881362377,0.7961,3226.2,3225.5,3.21338796]
[1736881362523,0.23074999,3226.1,3225.5,3.21338796]
[1736881362719,3.29175,3226.1,3225.5,3.21338796]
[1736881363021,0.192,3226.1,3225.3,3.10046]
[1736881363455,0.192,3226.1,3225.4,0.55]
[1736881365643,0.192,3226.1,3225.4,3.65037]
[1736881366022,0.192,3226.1,3225.4,0.55]
[1736881366218,3.29172,3226.1,3225.3,0.55]
[1736881366643,0.192,3226.1,3225.3,0.55]
[1736881366862,0.192,3226.1,3225.4,0.55]
[1736881367039,0.192,3226.1,3225.4,3.65038]
[1736881367437,0.192,3226.1,3225.3,0.55]
[1736881367967,3.29171,3226.1,3225.3,0.55]
[1736881368462,0.192,3226.1,3225.4,0.55]
[1736881368763,0.192,3226.1,3225.1,0.55]
[1736881368764,3.92106,3226.0,3225.1,3.10063]
[1736881369057,0.8212,3225.8,3224.7,0.63095928]
[1736881369264,0.8212,3225.5,3224.6,3.10112]
[1736881369471,0.8212,3225.5,3224.7,0.55]
[1736881369763,3.92149,3225.5,3224.7,0.55]
[1736881370063,0.8212,3225.5,3224.9,0.55]
[1736881370859,0.8212,3225.5,3224.8,0.55]
[1736881371036,0.8212,3225.5,3224.4,2.92990098]
[1736881371357,0.8212,3225.5,3224.2,0.769]
[1736881371358,3.10046,3225.4,3224.5,3.10122]
[1736881371562,0.8212,3225.5,3224.8,0.55]
[1736881371934,0.8212,3225.5,3224.4,3.55093845]
[1736881372267,0.8212,3225.5,3225.3,0.55]
[1736881372760,0.8212,3225.5,3225.1,0.55]
[1736881373162,0.8212,3225.5,3224.8,3.10093]
[1736881373368,0.8212,3225.5,3224.8,0.310093]
[1736881373544,0.192,3225.7,3225.4,0.55]
[1736881374169,0.8212,3226.2,3225.4,0.55]
[1736881374513,0.192,3225.9,3225.5,0.55]
[1736881374690,0.192,3225.9,3225.3,0.55]
[1736881375385,0.8212,3225.8,3225.0,3.65073]
[1736881375583,0.8212,3225.8,3225.2,0.55]
[1736881376283,0.8212,3225.8,3224.9,3.10082]
[1736881376581,0.8212,3225.8,3225.0,0.55]
[1736881377486,0.8212,3225.8,3224.9,0.55]
[1736881377788,0.8212,3225.8,3225.1,0.55]
[1736881378966,0.8212,3225.8,3224.9,0.55]
[1736881378967,3.92121,3225.8,3224.9,0.55]
[1736881379265,4.332531,3225.8,3224.9,3.65083]
[1736881379458,0.8212,3225.8,3225.1,0.55]
[1736881379690,3.9212,3225.8,3225.1,0.55]
[1736881380082,3.9212,3225.8,3224.9,0.55]
[1736881380279,3.92129,3225.8,3224.5,0.769]
[1736881380470,0.8212,3225.8,3224.7,3.10099]
[1736881380666,0.8212,3225.4,3224.5,3.10121]
[1736881380871,3.92165,3225.4,3224.5,3.10121]
[1736881381131,3.92165,3225.4,3224.6,0.55]
[1736881381470,0.8212,3225.4,3224.7,0.55]
[1736881382169,0.8212,3225.4,3224.8,0.55]
[1736881382370,0.189,3225.4,3225.3,3.10048]
[1736881382663,0.189,3225.4,3225.3,0.55]
[1736881382865,0.8322,3225.7,3225.4,0.55]
[1736881383070,0.8322,3225.7,3225.1,0.55]
[1736881383314,0.8322,3225.7,3225.4,0.55]
[1736881388713,0.8322,3226.6,3225.6,3.55093845]
[1736881388869,0.189,3226.5,3226.1,3.09971]
[1736881389075,0.189,3226.5,3225.8,0.55]